Workbook

Sheet Титул
B1: Министерство науки и высшего образования Российской Федерации
B2: Федеральное государственное учреждение
B3: "Федеральный исследовательский центр Институт прикладной математики им. М.В. Келдыша
B4: Российской академии наук"
B5: (ИПМ им. М.В. Келдыша РАН)
B6: Аспирантура
B9: План одобрен Ученым советом ИПМ им. М.В. Келдыша РАН
B10: Протокол № 11/23 "26" октября 2023г.
B13: РАБОЧИЙ ПЛАН
B14: подготовки аспирантов
B16: по научной специальности - | G16: 1.1.2 дифференциальные уравнения и математическая физика
B18: Отдел | D18: Научно-образовательный отдел
B19: Виды деятельности выпускников: | D19: научно-исследовательская деятельность в области фундаментальной и прикладной математики, механики,
D20: естественных наук; преподавательская деятельность в области механики, математики
B22: Форма обучения: очная | H22: План разработан в соответствии с Приказом Минобрнауки РФ от 20.10.2021 N 951 "Об утверждении федеральных государственных требований к структуре программ подготовки научных и научнопедагогических кадров в аспирантуре (адъюнктуре), условиям их реализации, срокам освоения этих программ с учетом различных форм обучения, образовательных технологий и особенностей отдельных категорий аспирантов (адъюнктов)"
B23: Срок обучения: 4 года

Sheet Календарный график
A1: 1. Календарный учебный график на 2025/26 уч. год
B3: Сентябрь | F3: 29 - 5 | G3: Октябрь | J3: 27 - 2 | K3: Ноябрь | O3: Декабрь | S3: 29 - 4 | T3: Январь | W3: 26 - 1 | X3: Февраль | AA3: 23 - 1 | AB3: Март | AF3: 30 - 5 | AG3: Апрель | AJ3: 27 - 3 | AK3: Май | AO3: Июнь | AS3: 29 - 5 | AT3: Июль | AW3: 27 -2 | AX3: Август
B4: 1 - 7 | C4: 8 - 14 | D4: 15 - 21 | E4: 22 - 28 | G4: 6 - 12 | H4: 13 - 19 | I4: 20 - 26 | K4: 3 - 9 | L4: 10 - 16 | M4: 17 - 23 | N4: 24 - 30 | O4: 1 - 7 | P4: 8 - 14 | Q4: 15 - 21 | R4: 22 - 28 | T4: 5 - 11 | U4: 12 - 18 | V4: 19 - 25 | X4: 2 - 8 | Y4: 9 - 15 | Z4: 16 - 22 | AB4: 2 - 8 | AC4: 9 - 15 | AD4: 16 - 22 | AE4: 23 - 29 | AG4: 6 - 12 | AH4: 13 - 19 | AI4: 20 - 26 | AK4: 4 - 10 | AL4: 11 - 17 | AM4: 18 - 24 | AN4: 25 - 31 | AO4: 1 - 7 | AP4: 8 - 14 | AQ4: 15 - 21 | AR4: 22 - 28 | AT4: 6 - 12 | AU4: 13 - 19 | AV4: 20 - 26 | AX4: 3 - 9 | AY4: 10 - 16 | AZ4: 17 - 23 | BA4: 24 - 31
B5: 1 | C5: 2 | D5: 3 | E5: 4 | F5: 5 | G5: 6 | H5: 7 | I5: 8 | J5: 9 | K5: 10 | L5: 11 | M5: 12 | N5: 13 | O5: 14 | P5: 15 | Q5: 16 | R5: 17 | S5: 18 | T5: 19 | U5: 20 | V5: 21 | W5: 22 | X5: 23 | Y5: 24 | Z5: 25 | AA5: 26 | AB5: 27 | AC5: 28 | AD5: 29 | AE5: 30 | AF5: 31 | AG5: 32 | AH5: 33 | AI5: 34 | AJ5: 35 | AK5: 36 | AL5: 37 | AM5: 38 | AN5: 39 | AO5: 40 | AP5: 41 | AQ5: 42 | AR5: 43 | AS5: 44 | AT5: 45 | AU5: 46 | AV5: 47 | AW5: 48 | AX5: 49 | AY5: 50 | AZ5: 51 | BA5: 52
A6: I | B6: Н | C6: Н | D6: Н | E6: Н | Q6: па | R6: па | T6: К | U6: нир | V6: Н | W6: Н | AH6: кэ ан | AM6: па | AN6: па | AR6: кэ ф | AS6: нир | AT6: нир | AU6: К | AV6: К | AW6: К | AX6: К | AY6: К | AZ6: К | BA6: К
S10: К
A13: II | B13: Н | C13: Н | D13: Н | E13: Н | Q13: па | R13: па | T13: К | U13: нир | V13: Н | W13: Н | X13: Н | Y13: Н | AB13: п | AC13: п | AD13: п | AE13: п | AF13: п | AG13: п | AH13: п | AI13: п | AM13: па /кэ сп | AN13: кэ сп | AS13: нир | AT13: нир | AU13: К | AV13: К | AW13: К | AX13: К | AY13: К | AZ13: К | BA13: К
S17: К
A20: III | B20: Н | C20: Н | D20: Н | E20: Н | Q20: па | T20: К | U20: нир | V20: кэ сп | W20: кэ сп | X20: Н | Y20: Н | AM20: кэ сп | AN20: кэ сп | AS20: нир | AT20: нир | AU20: К | AV20: К | AW20: К | AX20: К | AY20: К | AZ20: К | BA20: К
S24: К
A27: IV | B27: Н | C27: Н | D27: Н | E27: Н | T27: К | U27: нир | V27: кэ сп | W27: кэ сп | X27: Н | Y27: Н | Z27: Н | AA27: Н | AB27: Н | AC27: Н | AD27: Н | AE27: Н | AF27: Н | AG27: Н | AH27: Н | AI27: Н | AJ27: Н | AK27: Н | AL27: Н | AM27: кэ сп | AN27: кэ сп | AO27: ИА | AP27: ИА | AQ27: ИА | AR27: ИА | AS27: ИА | AT27: ИА | AU27: ИА | AV27: ИА | AW27: К | AX27: К | AY27: К | AZ27: К | BA27: К
S31: К
A36: 2. Сводные данные
X37: Курс 1 | AD37: Курс 2 | AJ37: Курс 3 | AP37: Курс 4 | AV37: Итого
X38: сем. 1 | Z38: сем. 2 | AB38: Всего | AD38: сем. 3 | AF38: сем. 4 | AH38: Всего | AJ38: сем. 5 | AL38: сем. 6 | AN38: Всего | AP38: сем. 5 | AR38: сем. 6 | AT38: Всего
C39: Образовательная подготовка (рассред.) в т.ч. практика | X39: 6 | Z39: 6 | AB39: =X39+Z39 -> 12 | AD39: 4 | AH39: =AD39+AF39 -> 4 | AJ39: 2 | AL39: 0 | AN39: =AJ39+AL39 -> 2 | AR39: 0 | AT39: =AP39+AR39 -> 0 | AV39: =AB39+AH39+AN39+AT39 -> 18
A40: п | C40: Практика (рассред.) | AF40: 2 | AH40: =AD40+AF40 -> 2 | AV40: =AB40+AH40+AN40+AT40 -> 2
A41: Н | C41: Научные исследования | X41: 4 | Z41: 4 | AB41: =SUM(X41:AA41) -> 8 | AD41: 4 | AF41: 4 | AH41: =SUM(AD41:AG41) -> 8 | AJ41: 4 | AL41: 19 | AN41: =SUM(AJ41:AM41) -> 23 | AP41: 19 | AR41: 19 | AT41: =SUM(AP41:AS41) -> 38 | AV41: 77
C42: Научные исследования (рассред.) | X42: 7 | Z42: 13 | AB42: =SUM(X42:AA42) -> 20 | AD42: 9 | AF42: 17 | AH42: =SUM(AD42:AG42) -> 26 | AJ42: 11 | AN42: =SUM(AJ42:AM42) -> 11 | AT42: =SUM(AP42:AS42) -> 0 | AV42: 57
A43: па,кэ, нир | C43: Промежуточная аттестация по уч.дисциплинам зачет/экзамен,кэ, нир | X43: 2 | Z43: 2 | AB43: =SUM(X43:AA43) -> 4 | AD43: 2 | AF43: 2 | AH43: =SUM(AD43:AG43) -> 4 | AJ43: 2 | AL43: 1 | AN43: =SUM(AJ43:AM43) -> 3 | AT43: =SUM(AP43:AS43) -> 0 | AV43: 11
A44: ИА | C44: Итоговая аттестация | AL44: 5 | AN44: =SUM(AJ44:AM44) -> 5 | AR44: 8 | AT44: =SUM(AP44:AS44) -> 8 | AV44: 13
A45: К | C45: Каникулы | X45: 1 | Z45: 7 | AB45: =SUM(X45:AA45) -> 8 | AD45: 1 | AF45: 7 | AH45: =SUM(AD45:AG45) -> 8 | AJ45: 1 | AL45: 7 | AN45: =SUM(AJ45:AM45) -> 8 | AP45: 1 | AR45: 5 | AT45: =SUM(AP45:AS45) -> 6 | AV45: 30
X47: =SUM(X39:Y46) -> 20 | Z47: =SUM(Z39:AA46) -> 32 | AB47: =SUM(AB39:AC46) -> 52 | AD47: =SUM(AD39:AE46) -> 20 | AF47: =SUM(AF40:AG46) -> 32 | AH47: =SUM(AD47:AF47) -> 52 | AJ47: =SUM(AJ39:AK46) -> 20 | AL47: =SUM(AL39:AM45) -> 32 | AN47: =SUM(AJ47:AM47) -> 52 | AP47: =SUM(AP39:AQ46) -> 20 | AR47: =SUM(AR39:AS45) -> 32 | AT47: =SUM(AP47:AS47) -> 52 | AV47: 208

Sheet ПланСвод
A1: Сводный план подготовки аспирантов
C2: Наименование | D2: Формы контроля | N2: Всего часов | V2: ЗЕТ | W2: ИЗУЧЕНО И ПЕРЕЗАЧТЕНО | AH2: Подлежит изучению (час) | AI2: Распределение по курсам и семестрам | AK2: Распределение ЗЕТ
N3: По ЗЕТ | O3: По плану | P3: в том числе | V3: Факт | W3: Формы контроля | AG3: Часов | AI3: Курс 1 | AK3: Курс 1 | AN3: Курс 2 | AQ3: Курс 3 | AT3: Курс 4
D4: Экзамены | E4: Зачеты | F4: Зачеты с оценкой | G4: Курсовые проекты | H4: Курсовые работы | I4: Контрольные | J4: Оценки по рейтингу | K4: Рефераты | L4: Эссе | M4: РГР | P4: Контакт. раб. (по учеб. зан.) | Q4: из них | T4: СРС | U4: Контроль | W4: Экзамены | X4: Зачеты | Y4: Зачеты с оценкой | Z4: Курсовые проекты | AA4: Курсовые работы | AB4: Контрольные | AC4: Оценки по рейтингу | AD4: Рефераты | AE4: Эссе | AF4: РГР | AI4: Всего | AK4: Итого | AL4: Сем. 1 | AM4: Сем. 2 | AN4: Итого | AO4: Сем. 1 | AP4: Сем. 2 | AQ4: Итого | AR4: Сем. 1 | AS4: Сем. 2 | AT4: Итого | AU4: Сем. 1 | AV4: Сем. 2
Q5: Лек | R5: Пр | S5: Сем
AI6: Часов | AJ6: Ауд
A7: 1 | C7: Образовательный компонент | N7: =V7*36 -> 1080 | T7: =T8+T12+T19+T25 -> 334 | U7: =U8+U19 -> 72 | V7: =V8+V11+V17+V23 -> 30 | AK7: =AK8+AK11+AK17+AK23 -> 18.0 | AN7: =AN8+AN11+AN17+AN23 -> 9.0 | AQ7: =AQ8+AQ11+AQ17+AQ23 -> 3.0 | AT7: =AT8+AT11+AT17+AT23 -> 0.0
A8: 1.1 | C8: Дисциплины (базовая часть) | N8: =V8*36 -> 324 | P8: =P9+P10 -> 36 | T8: =T9+T10 -> 216 | U8: =U9+U10 -> 72 | V8: =V9+V10 -> 9 | AK8: =AK10+AK9 -> 9 | AL8: =AL10+AL9 -> 2 | AM8: 7 | AN8: 0 | AO8: =SUM(AO9:AO10) -> 0 | AP8: =SUM(AP9:AP10) -> 0 | AQ8: =AQ10+AQ9 -> 0 | AR8: 0 | AS8: 0 | AT8: 0 | AU8: 0 | AV8: 0
A9: 1.1.1 | B9: 1 | C9: Иностранный язык | D9: 1 | N9: =V9*36 -> 180 | O9: =SUM(P9:U9) -> 180 | P9: 20 | Q9: 2 | S9: 18 | T9: 124 | U9: 36 | V9: 5 | AH9: 180 | AI9: 180 | AJ9: 20 | AK9: =AL9+AM9 -> 5 | AL9: 2 | AM9: 3 | AN9: =AO9+AP9 -> 0 | AQ9: =AR9+AS9 -> 0 | AT9: =AU9+AV9 -> 0
A10: 1.1.2 | B10: 1 | C10: История и философия науки | D10: 2 | K10: + | N10: 144 | O10: 144 | P10: 16 | Q10: 6 | S10: 10 | T10: 92 | U10: 36 | V10: 4 | AH10: 144 | AI10: 144 | AJ10: 16 | AK10: =AL10+AM10 -> 4 | AM10: 4 | AN10: =AO10+AP10 -> 0 | AQ10: =AR10+AS10 -> 0 | AT10: =AU10+AV10 -> 0
A11: 1.2 | B11: 1 | C11: ДИСЦИПЛИНЫ (общие) | E11: 3 | F11: 2 | N11: =V11*36 -> 288 | O11: =P11+T11+U11 -> 396 | P11: 62 | Q11: 20 | S11: 42 | T11: 334 | V11: =SUM(V12:V16) -> 8 | AH11: 396 | AI11: 108 | AJ11: 26 | AK11: =SUM(AK12:AK16) -> 3 | AL11: 2 | AM11: 1 | AN11: 2 | AO11: 2 | AP11: 0 | AQ11: 3 | AR11: =SUM(AR13:AR16) -> 3 | AT11: =SUM(AT12:AT16) -> 0 | AU11: =SUM(AU12:AU16) -> 0 | AV11: =SUM(AV12:AV16) -> 0
B12: 1 | C12: Методология научных исследований | E12: 1 | N12: =V12*36 -> 72 | O12: =P12+T12+U12 -> 72 | P12: 14 | Q12: 4 | S12: 10 | T12: 58 | V12: =AK12+AN12+AQ12 -> 2 | AH12: 72 | AI12: 72 | AJ12: 14 | AK12: =SUM(AL12:AM12) -> 2 | AL12: 2 | AN12: =SUM(AO12:AP12) -> 0 | AQ12: =SUM(AR12:AS12) -> 0 | AT12: =SUM(AU12:AV12) -> 0
B13: 1 | C13: Методика написания и правила оформления научной работы | E13: 2 | N13: 36 | O13: 36 | P13: 12 | Q13: 4 | S13: 8 | T13: 24 | V13: =AK13+AN13+AQ13 -> 1 | AH13: 36 | AI13: 36 | AJ13: 12 | AK13: =SUM(AL13:AM13) -> 1 | AM13: 1 | AN13: =SUM(AO13:AP13) -> 0 | AQ13: =SUM(AR13:AS13) -> 0 | AT13: =SUM(AU13:AV13) -> 0
C14: Психология и педагогика профессиональной деятельности | E14: 3 | N14: 36 | V14: =AK14+AN14+AQ14+AT14 -> 1 | AK14: =SUM(AL14:AM14) -> 0 | AN14: =SUM(AO14:AP14) -> 1 | AO14: 1 | AQ14: =SUM(AR14:AS14) -> 0 | AT14: =SUM(AU14:AV14) -> 0
C15: Искусственный интеллект в научных исследованиях. | E15: 3 | N15: 36 | V15: 1 | AK15: =SUM(AL15:AM15) -> 0 | AN15: =SUM(AO15:AP15) -> 1 | AO15: 1 | AQ15: =SUM(AR15:AS15) -> 0 | AT15: =SUM(AU15:AV15) -> 0
B16: 1 | C16: Информационные технологии в профессиональной деятельности | F16: 5 | N16: =V16*36 -> 108 | O16: =SUM(P16:U16) -> 108 | P16: 12 | Q16: 4 | S16: 8 | T16: 96 | V16: 3 | AH16: 108 | AK16: =SUM(AL16:AM16) -> 0 | AN16: =SUM(AO16:AP16) -> 0 | AQ16: =SUM(AR16:AS16) -> 3 | AR16: 3 | AT16: =SUM(AU16:AV16) -> 0
B17: 1 | C17: ДИСЦИПЛИНЫ специальности: Теоретическая механика, динамика машин | D17: 2 | E17: 3 | N17: 360 | O17: =SUM(O18:O22) -> 360 | P17: =SUM(P18:P22) -> 68 | Q17: 0 | R17: 0 | S17: 0 | T17: 220 | U17: 72 | V17: 10 | AH17: 360 | AI17: 216 | AJ17: 40 | AK17: 6 | AL17: =SUM(AL18:AL22) -> 2 | AM17: =SUM(AM18:AM22) -> 4 | AN17: =SUM(AN18:AN22) -> 4 | AO17: 2 | AP17: 2
A18: 45 | B18: 1 | C18: Математический и функциональный анализ | E18: 1 | N18: 72 | O18: =SUM(P18:U18) -> 72 | P18: 14 | Q18: 4 | S18: 10 | T18: 58 | V18: 2 | AH18: 72 | AI18: 72 | AJ18: 14 | AK18: =SUM(AL18:AM18) -> 2 | AL18: 2
A19: 48 | B19: 1 | C19: Дифференциальные уравнения | E19: 2 | N19: 72 | O19: 72 | P19: 12 | Q19: 4 | S19: 8 | T19: 60 | V19: 2 | AH19: 72 | AI19: 72 | AJ19: 12 | AK19: =SUM(AL19:AM19) -> 2 | AM19: 2
A20: 51 | B20: 1 | C20: Механика | D20: 2 | N20: 72 | O20: 72 | P20: 14 | Q20: 4 | S20: 10 | T20: 22 | U20: 36 | V20: 2 | AH20: 72 | AI20: 72 | AJ20: 14 | AK20: =SUM(AL20:AM20) -> 2 | AM20: 2
A21: 54 | B21: 1 | C21: Статистическая физика | E21: 4 | N21: 72 | O21: 72 | P21: 14 | Q21: 4 | S21: 10 | T21: 58 | V21: 2 | AH21: 72 | AN21: 2 | AP21: 2
A22: 57 | B22: 1 | C22: Механика и электродинамика сплошных сред | D22: 3 | N22: 72 | O22: 72 | P22: 14 | Q22: 4 | S22: 10 | T22: 22 | U22: 36 | V22: 2 | AH22: 72 | AN22: 2 | AO22: 2
A23: 1.4 | B23: 1 | C23: Практика | F23: 4 | N23: 108 | O23: 108 | T23: =V23*36 -> 108 | V23: 3 | AH23: 108 | AN23: =SUM(AO23:AP23) -> 3 | AP23: 3
A24: 2 | C24: Научный коммпонент | J24: =S24*36 -> 265860 | L24: =50*3 -> 150 | N24: 7380 | O24: =SUM(O25:O26) -> 7380 | P24: =50*4 -> 200 | S24: =T24+V24+Y24 -> 7385 | T24: =V24*36-P24 -> 7180 | U24: =U25+U26 -> 0 | V24: 205.0 | W24: =W25+W26 -> 0.0 | X24: 32.0 | Y24: =Y25+Y26 -> 0.0 | Z24: =Z25+Z26 -> 0.0 | AA24: =AA25+AA26 -> 0.0 | AK24: =SUM(AK25:AK26) -> 42.0 | AL24: =SUM(AL25:AL26) -> 16.5 | AM24: =SUM(AM25:AM26) -> 25.5 | AN24: =SUM(AN25:AN26) -> 51.0 | AO24: =SUM(AO25:AO26) -> 19.0 | AP24: 32.0 | AQ24: 57.0 | AR24: 22.5 | AS24: 34.5 | AT24: 55.0 | AU24: 25.5 | AV24: =SUM(AV25:AV26) -> 29.5
A25: 80 | B25: 1 | C25: Научно-исследовательская работа аспиранта и выполнение диссертации на соискание ученой степени кандидата наук | F25: 1-7 | N25: 6840 | O25: =V25*36 -> 6840 | V25: 190 | AH25: 3672 | AI25: 1080.00 | AK25: =SUM(AL25:AM25) -> 39.0 | AL25: 15.5 | AM25: 23.5 | AN25: =SUM(AO25:AP25) -> 47.0 | AO25: 17.0 | AP25: 30.0 | AQ25: =SUM(AR25:AS25) -> 54.0 | AR25: 20.5 | AS25: 33.5 | AT25: =SUM(AU25:AV25) -> 50.0 | AU25: 22.5 | AV25: 27.5
A26: 81 | B26: 1 | C26: Научно-исследовательская работа аспиранта и выполнение диссертации на соискание ученой степени кандидата наук | F26: 1-8 | N26: 540 | O26: =V26*36 -> 540 | V26: 15 | AH26: 3240 | AI26: 432.00 | AK26: =SUM(AL26:AM26) -> 3.0 | AL26: 1.0 | AM26: 2.0 | AN26: =SUM(AO26:AP26) -> 4.0 | AO26: 2.0 | AP26: 2.0 | AQ26: =SUM(AR26:AS26) -> 3.0 | AR26: 2.0 | AS26: 1.0 | AT26: =SUM(AU26:AV26) -> 5.0 | AU26: 3.0 | AV26: 2.0
A27: 3 | B27: 1 | C27: Итоговая аттестация | D27: 8 | E27: 8 | N27: 180 | O27: =V27*36 -> 180 | Q27: 6 | V27: 5 | AH27: 108 | AT27: =AU27+AV27 -> 5.0 | AV27: 5.0
C28: Итого | N28: =N27+N24+N7 -> 8640 | V28: =V27+V24+V7 -> 240.0 | AK28: =AK24+AK7+AK27 -> 60.0 | AN28: =AN24+AN7+AN27 -> 60.0 | AQ28: =AQ24+AQ7+AQ27 -> 60.0 | AT28: =AT24+AT7+AT27 -> 60.0 | AV28: =AV24+AV7+AV27 -> 34.5

Sheet План
B1: План подготовки аспирантов
B2: Наименование | E2: Формы контроля | I2: Всего часов | R2: Распределение по курсам и семестрам | U2: Распределение по курсам и семестрам | BH2: Распределение по курсам и семестрам
I3: По ЗЕТ | J3: По плану | K3: в том числе | Q3: Факт | R3: Курс 1 | AE3: Курс 2 | AH3: Курс 2 | AR3: Курс 3 | BE3: Курс 4
E4: Экзамены | F4: Зачеты | G4: Зачеты с оценкой | H4: Рефераты | K4: Контакт. раб. (по учеб. зан.) | L4: из них | O4: СРС | P4: Контроль | R4: Всего | U4: Семестр 1 [12 нед] | Z4: Семестр 2 [21 нед] | AE4: Всего | AH4: Семестр 3 [8 нед] | AM4: Семестр 4 [23 нед] | AR4: Всего | AU4: Семестр 5 [15 нед] | AZ4: Семестр 6 [23 нед] | BE4: Всего | BH4: Семестр 7 [ нед] | BM4: Семестр 8 [ нед]
L5: Лек | M5: Пр | N5: Сем | U5: Лек | V5: Сем | W5: СРС | X5: Контроль | Y5: ЗЕТ | Z5: Лек | AA5: Сем | AB5: СРС | AC5: Контроль | AD5: ЗЕТ | AH5: Лек | AI5: Сем | AJ5: СРС | AK5: Контроль | AL5: ЗЕТ | AM5: Лек | AN5: Сем | AO5: СРС | AP5: Контроль | AQ5: ЗЕТ | AU5: Лек | AV5: Сем | AW5: СРС | AX5: Контроль | AY5: ЗЕТ | AZ5: Лек | BA5: Сем | BB5: СРС | BC5: Контроль | BD5: ЗЕТ | BH5: Лек | BI5: Сем | BJ5: СРС | BK5: Контроль | BL5: ЗЕТ | BM5: Лек | BN5: Сем | BO5: СРС | BP5: Контроль | BQ5: ЗЕТ
R6: Часов | S6: Ауд | T6: ЗЕТ | AE6: Часов | AF6: Ауд | AG6: ЗЕТ | AR6: Часов | AS6: Ауд | AT6: ЗЕТ | BE6: Часов | BF6: Ауд | BG6: ЗЕТ
B8: Итого на подготовку аспиранта | E8: =E9 -> 5 | F8: =F9 -> 6 | G8: =G10+G13+G19+G28+G30 -> 10 | I8: =I9+I30+I33 -> 8640 | J8: =SUM(K8:P8) -> 8640 | K8: =K9+K30+K33 -> 420 | L8: 50 | N8: 110 | O8: =O9+O30+O33 -> 8076 | P8: =P9+P30+P33 -> 144 | Q8: =Q9+Q30+Q33 -> 240 | R8: =U8+V8+W8+X8+20+Z8+AA8+AB8+AC8+30 -> 2,160 | S8: 102 | T8: 60 | U8: =U9 -> 10 | V8: =V9 -> 38 | W8: =W9+W30 -> 814 | X8: =X9+X28+X30+X33 -> 36 | Y8: 22 | Z8: =Z9+Z28 -> 18 | AA8: =AA9+AA28 -> 36 | AB8: =AB9+AB30 -> 1086 | AC8: 72 | AD8: 35 | AE8: =AH8+AI8+AJ8+AK8+AM8+AN8+AO8+AP8 -> 2092 | AF8: 52 | AG8: 60.0 | AH8: =AH9+AH28 -> 12 | AI8: =AI9+AI28 -> 26 | AJ8: =AJ9+AJ30 -> 734 | AK8: =AK9+AK30 -> 36 | AL8: =AL9+AL30 -> 23.0 | AM8: =AM9 -> 4 | AN8: =AN9+AN28 -> 10 | AO8: =AO9+AO28+AO30+AO33 -> 1270 | AP8: =AP9+AP28+AP30+AP33 -> 0 | AQ8: =AQ9+AQ28+AQ30+AQ33 -> 37.0 | AR8: =AU8+AV8+AW8+AX8+AZ8+BA8+BB8+BC8 -> 2110 | AS8: =AS9+AS28+AS30+AS33 -> 12 | AT8: =AY8+BD8 -> 60 | AU8: =AU9 -> 4 | AV8: =AV9 -> 8 | AW8: =AW9+AW28+AW30+AW33 -> 886 | AX8: =AX9+AX28+AX30+AX33 -> 0 | AY8: =AY9+AY28+AY30+AY33 -> 25.5 | AZ8: =AZ9+AZ28 -> 0 | BB8: =BB9+BB28+BB30+BB33 -> 1212 | BD8: =BD9+BD28+BD30+BD33 -> 34.5 | BE8: =BE9+BE28+BE30+BE33 -> 2160 | BG8: =BL8+BQ8 -> 60.00 | BL8: =BL9+BL28+BL30+BL33 -> 25.5 | BQ8: =BQ9+BQ28+BQ30+BQ33 -> 34.5
A9: 1 | B9: Образовательный компонент | E9: =E10+E13+E19 -> 5 | F9: 6 | G9: =G10+G13+G19+G28 -> 2 | I9: =Q9*36 -> 1080 | J9: =J10+J13+J19+J28 -> 1080 | K9: =K10+K13+K19+K28 -> 184 | L9: 48 | N9: 118 | O9: =O10+O13+O19+O28 -> 752 | P9: 144 | Q9: =Q10+Q13+Q19+Q28 -> 30 | R9: 648 | S9: =S10++S19 -> 76 | T9: =Y9+AC9 -> 77 | U9: =U10+U13+U19+U28 -> 10 | V9: =V10+V13+V19+V28 -> 38 | W9: =W10+W13+W19 -> 240 | X9: 36 | Y9: =Y10+Y13+Y19+Y28 -> 5 | Z9: 18 | AA9: 36 | AB9: 198 | AC9: 72 | AD9: 9 | AE9: 216 | AF9: 52 | AG9: 6 | AH9: 12 | AI9: 26 | AJ9: 70 | AK9: 36 | AL9: 4 | AM9: 4 | AN9: 10 | AO9: 58 | AP9: 0 | AQ9: 2 | AR9: 108 | AS9: 12 | AT9: 3 | AU9: 4 | AV9: 8 | AW9: 96 | AX9: 0 | AY9: 3 | AZ9: 0 | BA9: 0 | BB9: 0 | BC9: 0 | BD9: 0 | BE9: 0 | BF9: 0 | BG9: 0 | BH9: 0 | BI9: 0 | BJ9: 0 | BK9: 0 | BL9: 0 | BM9: 0 | BN9: 0 | BO9: 0 | BP9: 0 | BQ9: 0
A10: 1.1 | B10: Дисциплины/модули (Базовая часть) | E10: 2 | I10: =Q10*36 -> 324 | J10: =J11+J12 -> 324 | K10: 36 | L10: 8 | M10: 0 | N10: 28 | O10: 216 | P10: 72 | Q10: 9 | R10: =R11+R12 -> 324 | S10: 36 | T10: =Y10+AC10 -> 41 | U10: =SUM(U11:U12) -> 2 | V10: =SUM(V11:V12) -> 18 | W10: =SUM(W11:W12) -> 124 | X10: 36 | Y10: 5 | Z10: 6 | AA10: 10 | AB10: 92 | AC10: 36 | AD10: 4 | AE10: 0 | AF10: 0 | AG10: 0 | AH10: 0 | AI10: 0 | AJ10: 0 | AK10: 0 | AL10: 0 | AM10: 0 | AN10: 0 | AO10: 0 | AP10: 0 | AQ10: 0 | AR10: 0 | AS10: 0 | AT10: 0 | AU10: 0 | AV10: 0 | AW10: 0 | AX10: 0 | AY10: 0 | AZ10: 0 | BA10: 0 | BB10: 0 | BC10: 0 | BD10: 0 | BE10: 0 | BF10: 0 | BG10: 0 | BH10: 0 | BI10: 0 | BJ10: 0 | BK10: 0 | BL10: 0 | BM10: 0 | BN10: 0 | BO10: 0 | BP10: 0 | BQ10: 0
A11: 1.1.1 | B11: Иностранный язык | E11: 1 | I11: 180 | J11: 180 | K11: 20 | L11: 2 | N11: 18 | O11: 124 | P11: 36 | Q11: 5 | R11: 180 | S11: 20 | T11: 5 | U11: 2 | V11: 18 | W11: 124 | X11: 36 | Y11: 5
A12: 1.1.2 | B12: История и философия науки | E12: 2 | H12: + | I12: 144 | J12: 144 | K12: 16 | L12: 6 | N12: 10 | O12: 92 | P12: 36 | Q12: 4 | R12: 144 | S12: 16 | T12: 4 | Z12: 6 | AA12: 10 | AB12: 92 | AC12: 36 | AD12: 4
A13: 1.2 | B13: ДИСЦИПЛИНЫ ОБЩИЕ | E13: 1 | F13: 3 | G13: 1 | I13: =Q13*36 -> 288 | J13: =SUM(J14:J18) -> 288 | K13: =SUM(K14:K18) -> 62 | L13: 20 | N13: 42 | O13: =SUM(O14:O18) -> 226 | Q13: =SUM(Q14:Q18) -> 8 | R13: 108 | S13: 26 | T13: 3 | U13: 4 | V13: 10 | W13: 58 | X13: 0 | Y13: 0 | Z13: 4 | AA13: 8 | AB13: 24 | AC13: 0 | AD13: 1 | AE13: 72 | AF13: 24 | AG13: 2 | AH13: 8 | AI13: =SUM(AI14:AI18) -> 16 | AJ13: 48 | AK13: 0 | AL13: 2 | AM13: 0 | AN13: 0 | AO13: 0 | AP13: 0 | AQ13: 0 | AR13: =SUM(AR14:AR18) -> 108 | AS13: =SUM(AS14:AS18) -> 12 | AT13: =SUM(AT14:AT18) -> 3 | AU13: =SUM(AU14:AU18) -> 4 | AV13: 8 | AW13: 96 | AX13: 0 | AY13: 3 | AZ13: 0 | BA13: 0 | BB13: 0 | BC13: 0 | BD13: 0 | BE13: 0 | BF13: 0 | BG13: 0 | BH13: 0 | BI13: 0 | BJ13: 0 | BK13: 0 | BL13: 0 | BM13: 0 | BN13: 0 | BO13: 0 | BP13: 0 | BQ13: 0
A14: 1.2.1 | B14: Методология научных исследований | F14: 1 | I14: 72 | J14: =SUM(K14:P14) -> 72 | K14: 14 | L14: 4 | N14: 10 | O14: 58 | Q14: =T14+AG14+AT14+BG14 -> 2 | R14: =T14*36 -> 72 | S14: =U14+V14+Z14+AA14 -> 14 | T14: =Y14+AD14 -> 2 | U14: 4 | V14: 10 | W14: 58 | Y14: 2 | AG14: =AL14+AQ14 -> 0 | AT14: =AY14+BD14 -> 0 | BG14: =BL14+BQ14 -> 0
A15: 1.2.2 | B15: Методика написания и правила оформления научной работы | F15: 2 | I15: 36 | J15: =SUM(K15:P15) -> 36 | K15: 12 | L15: 4 | N15: 8 | O15: 24 | Q15: =T15+AG15+AT15+BG15 -> 1 | R15: =T15*36 -> 36 | S15: =U15+V15+Z15+AA15 -> 12 | T15: =Y15+AD15 -> 1 | Z15: 4 | AA15: 8 | AB15: 24 | AD15: 1
A16: 1.2.3 | B16: Психология и педагогтика профессиональной деятельности | F16: 3 | I16: 36 | J16: =SUM(K16:P16) -> 36 | K16: 12 | L16: 4 | N16: 8 | O16: 24 | Q16: =T16+AG16+AT16+BG16 -> 1 | R16: =T16*36 -> 0 | T16: =Y16+AD16 -> 0 | AE16: =AG16*36 -> 36 | AF16: =AH16+AI16 -> 12 | AG16: =AL16+AQ16+AQ16 -> 1 | AH16: 4 | AI16: 8 | AJ16: 24 | AL16: 1 | AU16: =AW16*36 -> 0 | AW16: =BB16+BG16 -> 0
A17: 1.2.4 | B17: Искусственный интеллект в научных исследованиях. | E17: 3 | I17: 36 | J17: =SUM(K17:P17) -> 36 | K17: 12 | L17: 4 | N17: 8 | O17: 24 | Q17: =T17+AG17+AT17+BG17 -> 1 | R17: =T17*36 -> 0 | T17: =Y17+AD17 -> 0 | AE17: =AG17*36 -> 36 | AF17: =AH17+AI17 -> 12 | AG17: =AL17+AQ17+AQ17 -> 1 | AH17: 4 | AI17: 8 | AJ17: 24 | AL17: 1
A18: 1.2.5 | B18: Информационные технологии в профессиональной деятельности | G18: 5 | I18: 108 | J18: =SUM(K18:P18) -> 108 | K18: 12 | L18: 4 | N18: 8 | O18: 96 | Q18: =T18+AG18+AT18+BG18 -> 3 | R18: =T18*36 -> 0 | T18: =Y18+AD18 -> 0 | AR18: =AT18*36 -> 108 | AS18: 12 | AT18: =AY18+BD18 -> 3 | AU18: 4 | AV18: 8 | AW18: 96 | AY18: 3
A19: 1.3. | B19: ДИСЦИПЛИНЫ ПРОГРАММЫ: Теоретическая механика | E19: 2 | F19: 3 | I19: =SUM(I20:I24) -> 360 | J19: =SUM(J20:J24) -> 360 | K19: =SUM(K20:K24) -> 68 | L19: 20 | N19: 48 | O19: =SUM(O20:O24) -> 220 | P19: =SUM(P21:P24) -> 72 | Q19: =SUM(Q20:Q24) -> 10 | R19: =SUM(R20:R24) -> 216 | S19: =SUM(S20:S24) -> 40 | T19: =SUM(T20:T24) -> 6 | U19: =SUM(U20:U24) -> 4 | V19: =SUM(V20:V24) -> 10 | W19: 58 | X19: 0 | Y19: 0 | Z19: 8 | AA19: 18 | AB19: 82 | AC19: 36 | AD19: 4 | AE19: 144 | AF19: 28 | AG19: 4 | AH19: 4 | AI19: 10 | AJ19: 22 | AK19: 36 | AL19: 2 | AM19: 4 | AN19: 10 | AO19: 58 | AP19: 0 | AQ19: 2 | AR19: 0 | AS19: 0 | AT19: 0 | AU19: 0 | AV19: 0 | AW19: 0 | AX19: 0 | AY19: 0 | AZ19: 0 | BA19: 0 | BB19: 0 | BC19: 0 | BD19: 0 | BE19: 0 | BF19: 0 | BG19: 0 | BH19: 0 | BI19: 0 | BJ19: 0 | BK19: 0 | BL19: 0 | BM19: 0 | BN19: 0 | BO19: 0 | BP19: 0 | BQ19: 0
A20: 1.3.1 | B20: Математический и функциональный анализ | F20: 1 | I20: =Q20*36 -> 72 | J20: =SUM(K20:P20) -> 72 | K20: 14 | L20: 4 | N20: 10 | O20: 58 | Q20: =T20+AG20+AT20+BG20 -> 2 | R20: =T20*36 -> 72 | S20: 14 | T20: =Y20+AD20 -> 2 | U20: 4 | V20: 10 | W20: 58 | Y20: 2
A21: 1.3.2 | B21: Дифференциальные уравнения | F21: 2 | I21: =Q21*36 -> 72 | J21: =SUM(K21:P21) -> 72 | K21: 12 | L21: 4 | N21: 8 | O21: 60 | Q21: =T21+AG21+AT21+BG21 -> 2 | R21: =T21*36 -> 72 | S21: 12 | T21: =Y21+AD21 -> 2 | Z21: 4 | AA21: 8 | AB21: 60 | AD21: 2
A22: 1.3.3 | B22: Механика | E22: 2 | I22: =Q22*36 -> 72 | J22: =SUM(K22:P22) -> 72 | K22: 14 | L22: 4 | N22: 10 | O22: 22 | P22: 36 | Q22: =T22+AG22+AT22+BG22 -> 2 | R22: =T22*36 -> 72 | S22: 14 | T22: =Y22+AD22 -> 2 | Z22: 4 | AA22: 10 | AB22: 22 | AC22: 36 | AD22: 2
A23: 1.3.4 | B23: Статистическая физика | F23: 4 | I23: =Q23*36 -> 72 | J23: =SUM(K23:P23) -> 72 | K23: 14 | L23: 4 | N23: 10 | O23: 58 | Q23: =T23+AG23+AT23+BG23 -> 2 | R23: =T23*36 -> 0 | T23: =Y23+AD23 -> 0 | AE23: =AG23*36 -> 72 | AF23: 14 | AG23: 2 | AM23: 4 | AN23: 10 | AO23: 58 | AQ23: 2
A24: 1.3.5 | B24: Механика и электродинамика сплошных сред | E24: 3 | I24: =Q24*36 -> 72 | J24: =SUM(K24:P24) -> 72 | K24: 14 | L24: 4 | N24: 10 | O24: 22 | P24: 36 | Q24: =T24+AG24+AT24+BG24 -> 2 | R24: =T24*36 -> 0 | T24: =Y24+AD24 -> 0 | AE24: =AG24*36 -> 72 | AF24: 14 | AG24: 2 | AH24: 4 | AI24: 10 | AJ24: 22 | AK24: 36 | AL24: 2
B25: Наименование | I25: Всего часов | R25: Всего | U25: Семестр 1 | Z25: Семестр 2 | AE25: Всего | AH25: Семестр 3 | AM25: Семестр 4 | AR25: Всего | AU25: Семестр 5 | AZ25: Семестр 6 | BE25: Всего | BH25: Семестр 7 | BM25: Семестр 8
I26: По ЗЕТ | J26: По плану | K26: Контакт.р. | O26: СР | P26: ЗЕТ | Q26: Факт | R26: часов | T26: ЗЕТ | U26: часов | W26: СРС | Y26: ЗЕТ | Z26: часов | AB26: СРС | AD26: ЗЕТ | AE26: часов | AG26: ЗЕТ | AH26: часов | AJ26: СРС | AL26: ЗЕТ | AM26: часов | AO26: СРС | AQ26: ЗЕТ | AR26: часов | AT26: ЗЕТ | AU26: часов | AW26: СРС | AY26: ЗЕТ | AZ26: часов | BB26: СРС | BD26: ЗЕТ | BE26: часов | BG26: ЗЕТ | BH26: часов | BJ26: СРС | BL26: ЗЕТ | BM26: часов | BO26: СРС | BQ26: ЗЕТ
A28: 1.4 | B28: Практики | G28: 1 | I28: =Q28*36 -> 108 | J28: =J29 -> 108 | K28: =K29 -> 18 | O28: =O29 -> 90 | Q28: =Q29 -> 3 | AE28: =AG28*36 -> 108 | AG28: =AL28+AQ28 -> 3 | AM28: =AQ28*36 -> 108 | AO28: =AO29 -> 90 | AQ28: =AQ29 -> 3
A29: 1.4.1 | B29: Научно-педагогическая практика | G29: 4 | I29: 108 | J29: =K29+O29 -> 108 | K29: 18 | O29: =AO29 -> 90 | Q29: 3 | AE29: =AG29*36 -> 108 | AG29: =AL29+AQ29 -> 3 | AM29: =AQ29*36 -> 108 | AO29: 90 | AQ29: 3
A30: 2 | B30: Научные исследования | G30: 8 | I30: =Q30*36 -> 7380 | J30: =J31+J32 -> 7380 | K30: 200 | O30: =J30-K30 -> 7180 | Q30: =T30+AG30+AT30+BG30 -> 205 | R30: =T30*36 -> 1 512 | T30: =Y30+AD30 -> 42.0 | U30: =Y30*36 -> 594 | V30: 0 | W30: =U30-20 -> 574 | Y30: =Y32+Y31 -> 16.5 | Z30: =AD30*36 -> 918 | AB30: =Z30-30 -> 888 | AD30: =AD32+AD31 -> 25.5 | AE30: =AG30*36 -> 1 836 | AG30: =AL30+AQ30 -> 51.0 | AH30: =AL30*36 -> 684 | AI30: 0 | AJ30: =AH30-20 -> 664 | AL30: =AL32+AL31 -> 19.0 | AM30: =AQ30*36 -> 1152 | AO30: =AM30-30 -> 1122 | AQ30: =AQ32+AQ31 -> 32.0 | AR30: =AT30*36 -> 2 052 | AT30: =AY30+BD30 -> 57.0 | AU30: =AY30*36 -> 810 | AW30: =AU30-20 -> 790 | AY30: =AY32+AY31 -> 22.5 | AZ30: =BD30*36 -> 1242 | BB30: =AZ30-30 -> 1212 | BD30: =BD32+BD31 -> 34.5 | BE30: =BG30*36 -> 1 980 | BG30: =BL30+BQ30 -> 55.0 | BH30: =BL30*36 -> 918 | BL30: =BL32+BL31 -> 25.5 | BM30: =BQ30*36 -> 1 062 | BQ30: =BQ31+BQ32 -> 29.5
A31: 2.1 | B31: Научно-исследовательская работа аспиранта, направленная на подготовку диссертациии на соискание ученой степени кандидата наук к защите | G31: 1-8 | I31: =Q31*36 -> 6840 | J31: =Q31*36 -> 6840 | O31: =P31*36 -> 5148 | P31: 143 | Q31: =T31+AG31+AT31+BG31 -> 190 | R31: =T31*36 -> 1 404 | T31: =Y31+AD31 -> 39.0 | Y31: 15.5 | Z31: =AD31*36 -> 846 | AD31: 23.5 | AE31: =AG31*36 -> 1 692 | AG31: =AL31+AQ31 -> 47.0 | AH31: =AL31*36 -> 612 | AL31: 17.0 | AM31: =AQ31*36 -> 1080 | AQ31: 30.0 | AR31: =AT31*36 -> 1 872 | AT31: =AY31+BD31 -> 52.0 | AU31: =AY31*36 -> 738 | AY31: 20.5 | AZ31: =BD31*36 -> 1134 | BD31: 31.5 | BE31: =BG31*36 -> 1 872 | BG31: =BL31+BQ31 -> 52.0 | BH31: =BL31*36 -> 846 | BL31: 23.5 | BM31: =BQ31*36 -> 1 026 | BQ31: 28.5
A32: 2.2 | B32: Подготовка публикаций и (или) заявок на патенты на изобретения | G32: 1-7 | I32: =Q32*36 -> 540 | J32: =Q32*36 -> 540 | Q32: =T32+AG32+AT32+BG32 -> 15 | R32: 432 | T32: =Y32+AD32 -> 3.0 | Y32: 1.0 | Z32: =AD32*36 -> 72 | AD32: 2.0 | AE32: =AG32*36 -> 144 | AG32: =AL32+AQ32 -> 4.0 | AH32: =AL32*36 -> 72 | AL32: 2.0 | AM32: =AQ32*36 -> 72 | AQ32: 2.0 | AR32: =AT32*36 -> 180 | AT32: =AY32+BD32 -> 5.00 | AU32: =AY32*36 -> 72 | AY32: 2.0 | AZ32: =BD32*36 -> 108 | BD32: 3.0 | BE32: =BG32*36 -> 108 | BG32: =BL32+BQ32 -> 3.0 | BH32: =BL32*36 -> 72 | BL32: 2.0 | BM32: =BQ32*36 -> 36 | BQ32: 1.0
A33: 3 | B33: Итоговая аттестация | E33: 8 | I33: =Q33*36 -> 180 | J33: =Q33*36 -> 180 | K33: 36 | L33: 6 | O33: 144 | Q33: 5 | BE33: =BQ33*36 -> 180 | BQ33: 5

Sheet Start (hidden)
